fUSD/lending_fUSD_20260309
["ID","MTS","AMOUNT","RATE_DAILY","PERIOD"]
[408063347,1773093041422,-500.0,0.00019999,2]
[408063348,1773093041431,-2752.59,0.00019999,2]
[408063349,1773093041440,-2752.59,0.00019999,2]
[408063350,1773093041450,-2752.59,0.00019999,2]
[408063351,1773093041459,-2752.59,0.00019999,2]
[408063352,1773093041469,-2752.59,0.00019999,2]
[408063353,1773093041478,-2752.59,0.00019999,2]
[408063354,1773093041488,-2752.59,0.00019999,2]
[408063355,1773093041498,-2752.59,0.00019999,2]
[408063356,1773093041507,-2752.59,0.00019999,2]
[408063357,1773093041516,-2752.59,0.00019999,2]
[408063358,1773093041525,-2752.59,0.00019999,2]
[408063359,1773093041534,-2752.59,0.00019999,2]
[408063360,1773093041543,-2752.59,0.00019999,2]
[408063361,1773093041553,-2752.59,0.00019999,2]
[408063362,1773093041563,-2752.59,0.00019999,2]
[408063363,1773093041574,-2752.59,0.00019999,2]
[408063364,1773093041583,-2752.59,0.00019999,2]
[408063365,1773093041593,-2752.59,0.00019999,2]
[408063366,1773093041602,-2752.59,0.00019999,2]
[408063367,1773093041611,-2752.59,0.00019999,2]
[408063368,1773093041620,-2752.59,0.00019999,2]
[408063369,1773093041630,-2752.78063009,0.00019999,2]
[408063370,1773093041640,-164.7198631,0.00019999,2]
[408063371,1773093041650,-205.12627198,0.00019999,2]
[408063372,1773093041660,-2228.0,0.0002,2]
[408063373,1773093041671,-150.0,0.0002,2]
[408063374,1773093041681,-78666.19175784,0.0002,2]
[408063375,1773093042543,-1884.01835142,0.0001987,2]
[408063376,1773093042553,-200930.68038535,0.0002,2]
[408063377,1773093042562,-459.48,0.0002,2]
[408063378,1773093042571,-746370.4715287,0.0002,2]
[408063379,1773093042581,-1000.0,0.0002,2]
[408063380,1773093042590,-1000.0,0.0002,2]
[408063381,1773093042599,-1000.0,0.0002,2]
[408063382,1773093042608,-1000.0,0.0002,2]
[408063383,1773093042617,-979.5398023,0.0002,2]
[408063384,1773093042626,-60795.32685323,0.0002,2]
[408063397,1773093045374,-843.1625,0.0002,2]
[408063398,1773093045406,-561.6680681,0.0002,2]
[408063405,1773093755525,5000.01,9.5e-05,3]
[408063406,1773093755549,5000.01,9.5e-05,3]
[408063407,1773093755573,5000.01,9.5e-05,3]
[408063408,1773093755596,5000.01,9.5e-05,3]
[408063409,1773093755618,5000.01,9.5e-05,3]
[408063410,1773093755641,601.31204679,9.5e-05,3]
[408063411,1773093793436,256.02,9.003e-05,2]
[408063412,1773093794057,256.02,9.477e-05,2]
[408063413,1773093794106,256.02,9.95e-05,2]
[408063414,1773093794250,256.02,0.00010424,2]
[408063415,1773093794585,256.02,0.00010898,2]
[408063416,1773093794822,256.02,0.00011372,2]
[408063417,1773093795064,256.02,0.00011846,2]
[408063418,1773093795301,256.02,0.0001232,2]
[408063419,1773093795525,256.02,0.00012793,2]
[408063420,1773093795745,256.02,0.00013267,2]
[408063421,1773093795986,256.02,0.00013741,2]
[408063422,1773093967475,170.78,0.00014,2]
[408063423,1773093999165,-256.02,0.00014215,2]
[408063424,1773094046274,500.0,9.215e-05,2]
[408063425,1773094046766,500.0,9.215e-05,2]
[408063443,1773094231635,-256.02,0.00014689,2]
[408063445,1773094231645,-390.19,0.00014999,2]
[408063446,1773094231693,-809.81,0.00014999,2]
[408063447,1773094231703,-500.0,0.00015,30]
[408063448,1773094231712,-575.34624251,0.00015,30]
[408063449,1773094231722,-938.01507143,0.00015,30]
[408063450,1773094231732,-602.91283418,0.00015,30]
[408063451,1773094231742,-500.0,0.00015,30]
[408063452,1773094231751,-203.4961446,0.00015,30]
[408063453,1773094231763,-296.5038554,0.00015,30]
[408063454,1773094231773,-256.02,0.00015163,2]
[408063455,1773094231782,-256.02,0.00015636,2]
[408063456,1773094231792,-256.02,0.0001611,2]
[408063457,1773094231802,-362.81856688,0.00016158,2]
[408063458,1773094231814,-237.18143312,0.00016158,2]
[408063459,1773094231823,-277.59604494,0.00016158,2]
[408063460,1773094231834,-1500.53904,0.00016158,2]
[408063461,1773094231844,-238.895,0.00016158,2]
[408063462,1773094231853,-887.08,0.00016158,2]
[408063463,1773094231863,-772.783048,0.00016245,7]
[408063464,1773094231872,-1680.0,0.00016499,2]
[408063465,1773094231882,-256.02,0.00016584,2]
[408063466,1773094231897,-500.0,0.0001699,2]
[408063467,1773094231918,-1000.0,0.00016999,2]
[408063468,1773094231939,-314.0,0.00016999,2]
[408063469,1773094231948,-57986.93987908,0.00017,2]
[408063470,1773094231958,-503.0,0.00017,2]
[408063471,1773094231967,-503.00003,0.00017,2]
[408063472,1773094231978,-152.0,0.00017039,3]
[408063473,1773094231989,-256.02,0.00017058,2]
[408063474,1773094231998,-2498.08965992,0.00017085,2]
[408063475,1773094232008,-3082.61531915,0.000171,2]
[408063476,1773094232018,-20414.12813717,0.0001711,2]
[408063477,1773094232033,-379.77992807,0.0001711,2]
[408063478,1773094232044,-1624.48783962,0.0001711,2]
[408063479,1773094232056,-559.90368676,0.0001711,2]
[408063480,1773094232069,-3574.01007193,0.0001711,2]
[408063481,1773094232082,-2672.36075844,0.0001711,2]
[408063482,1773094232096,-689.16136204,0.0001711,2]
[408063488,1773094237646,-1989.45402679,0.0001711,2]
[408063490,1773094237703,-1905.05167747,0.0001711,2]
[408063497,1773094239865,-814.324,0.0001711,2]
[408063498,1773094240087,-10960.6896483,0.0001711,2]
[408063499,1773094240096,-158.83,0.00017157,2]
[408063500,1773094240105,-2929.83,0.00017513,2]
[408063501,1773094240114,-256.02,0.00017532,2]
[408063502,1773094240124,-559.17,0.00017551,2]
[408063503,1773094240133,-500.0,0.00017586,2]
[408063504,1773094240142,-218.20252132,0.000176,2]
[408063505,1773094240152,-786.47796295,0.000177,2]
[408063506,1773094240165,-1408.467869,0.0001786,7]
[408063507,1773094240174,-1006.96096945,0.0001786,2]
[408063508,1773094240184,-1228.63307922,0.0001789,2]
[408063509,1773094240193,-1076.62298123,0.0001789,2]
[408063510,1773094240204,-4746.9870609,0.0001789,2]
[408063511,1773094240214,-170.78,0.000179,2]
[408063512,1773094240223,-465.22146743,0.00018,2]
[408063513,1773094240233,-1197.5510327,0.00018,2]
[408063514,1773094240243,-1032.89020362,0.00018,2]
[408063515,1773094240252,-256.02,0.00018006,2]
[408063516,1773094240262,-150.0,0.00018038,2]
[408063517,1773094240271,-1787.23818985,0.000181,2]
[408063518,1773094240281,-500.0,0.000181,2]
[408063519,1773094240290,-517.0,0.00018149,2]
[408063520,1773094240301,-215.98175507,0.00018171,2]
[408063521,1773094240311,-3470.11308297,0.0001821,2]
[408063522,1773094240320,-555.15882258,0.00018256,2]
[408063523,1773094240329,-500.0,0.00018356,7]
[408063524,1773094240338,-500.0,0.00018356,7]
[408063525,1773094240347,-500.0,0.00018356,7]
[408063526,1773094240357,-2929.83,0.00018389,2]
[408063528,1773094240366,-200.0,0.00018399,2]
[408063530,1773094240375,-847.0,0.000184,2]
[408063532,1773094240385,-152.0,0.00018431,4]
[408063534,1773094240394,-555.15882256,0.00018439,2]
[408063536,1773094240404,-555.15882256,0.00018621,2]
[408063538,1773094240413,-500.0,0.00018749,2]
[408063540,1773094240423,-503.0,0.0001875,3]
[408063542,1773094240433,-1500.0,0.0001879,2]
[408063544,1773094240442,-1484.21,0.00018796,2]
[408063546,1773094240452,-500.0,0.00018822,2]
[408063548,1773094240461,-873.84,0.00018836,2]
[408063550,1773094240471,-2000.0,0.00018859,2]
[408063552,1773094240481,-2416.64228497,0.00018904,2]
[408063554,1773094240490,-2024.94,0.00018924,2]
[408063556,1773094240500,-1000.0,0.00018999,2]
[408063558,1773094240509,-1896.48987267,0.00018999,2]
[408063559,1773094240518,-250.0,0.00018999,2]
[408063560,1773094240528,-174.61919141,0.00018999,2]
[408063561,1773094240537,-1613.02701518,0.00018999,2]
[408063562,1773094240548,-2567.11739689,0.00019,2]
[408063563,1773094240560,-3240.0,0.00019011,2]
[408063564,1773094240570,-168.0,0.00019077,2]
[408063565,1773094240580,-1227.17614096,0.000191,2]
[408063566,1773094240590,-658.61,0.00019178,2]
[408063567,1773094240602,-1000.0,0.00019178,2]
[408063568,1773094240611,-2000.0,0.000192,2]
[408063569,1773094240621,-2929.83,0.00019265,2]
[408063570,1773094240632,-1484.21,0.00019266,2]
[408063571,1773094240642,-469.49736645,0.00019273,2]
[408063572,1773094240652,-922.0,0.00019374,2]
[408063573,1773094240662,-1213.0,0.00019374,2]
[408063574,1773094240672,-5994.0,0.00019422,2]
[408063575,1773094240682,-3747.0,0.00019422,2]
[408063576,1773094240691,-2461.0,0.00019422,2]
[408063577,1773094240701,-161.56516808,0.00019425,2]
[408063578,1773094240711,-160.24329577,0.00019425,2]
[408063579,1773094240724,-7049.5981,0.00019427,2]
[408063580,1773094240734,-166.66,0.00019436,2]
[408063581,1773094240743,-500.0,0.00019452,7]
[408063582,1773094240753,-500.0,0.00019452,7]
[408063583,1773094240762,-1000.0,0.00019452,2]
[408063584,1773094240772,-168.0,0.00019478,2]
[408063585,1773094240781,-965.97881,0.00019494,7]
[408063586,1773094240791,-2500.0,0.00019526,2]
[408063587,1773094240801,-3805.85778105,0.00019527,2]
[408063588,1773094240811,-544.85773056,0.00019527,2]
[408063589,1773094240820,-6752.0367,0.00019527,2]
[408063590,1773094240830,-3942.9694,0.00019527,2]
[408063591,1773094240839,-3624.97,0.00019547,2]
[408063592,1773094240849,-1000.0,0.00019547,2]
[408063593,1773094240859,-181.08010149,0.00019547,2]
[408063594,1773094240869,-276.86073818,0.00019561,2]
[408063595,1773094240878,-3805.85778101,0.0001958,2]
[408063596,1773094240887,-276.8607381,0.00019599,2]
[408063597,1773094240897,-1376.98421943,0.000196,2]
[408063598,1773094240906,-168.0,0.00019613,2]
[408063599,1773094240916,-198.88319627,0.00019617,2]
[408063600,1773094240926,-151.0,0.00019624,2]
[408063601,1773094240935,-236.80810791,0.00019625,2]
[408063602,1773094240944,-538.9228513,0.00019625,2]
[408063603,1773094240954,-500.0,0.00019625,2]
[408063604,1773094240964,-500.0,0.00019625,2]
[408063605,1773094240973,-500.0,0.00019625,2]
[408063606,1773094240983,-500.0,0.00019625,2]
[408063607,1773094240992,-500.0,0.00019625,2]
[408063608,1773094241003,-500.0,0.00019625,2]
[408063609,1773094241012,-500.0,0.00019625,2]
[408063610,1773094241021,-500.0,0.00019625,2]
[408063611,1773094241031,-500.0,0.00019625,2]
[408063612,1773094241041,-509.18127495,0.00019625,2]
[408063613,1773094241051,-500.0,0.00019625,2]
[408063614,1773094241060,-500.0,0.00019625,2]
[408063615,1773094241070,-500.0,0.00019625,2]
[408063616,1773094241079,-500.0,0.00019625,2]
[408063617,1773094241090,-500.0,0.00019625,2]
[408063618,1773094241103,-500.0,0.00019625,2]
[408063619,1773094241113,-500.0,0.00019625,2]
[408063620,1773094241124,-500.0,0.00019625,2]
[408063621,1773094241133,-500.0,0.00019625,2]
[408063622,1773094241143,-500.0,0.00019625,2]
[408063623,1773094241152,-500.0,0.00019625,2]
[408063624,1773094241162,-500.0,0.00019625,2]
[408063625,1773094241172,-500.0,0.00019625,2]
[408063626,1773094241182,-500.0,0.00019625,2]
[408063627,1773094241191,-500.0,0.00019625,2]
[408063628,1773094241202,-500.0,0.00019625,2]
[408063629,1773094241212,-500.0,0.00019626,2]
[408063630,1773094241222,-500.0,0.00019626,2]
[408063631,1773094241231,-500.0,0.00019626,2]
[408063632,1773094241241,-500.0,0.00019626,2]
[408063633,1773094241250,-500.0,0.00019626,2]
[408063634,1773094241260,-1159.05776479,0.00019626,5]
[408063635,1773094241270,-500.0,0.00019626,2]
[408063636,1773094241279,-500.0,0.00019626,2]
[408063637,1773094241288,-500.0,0.00019626,2]
[408063638,1773094241298,-500.0,0.00019626,2]
[408063639,1773094241307,-500.0,0.00019626,2]
[408063640,1773094241316,-500.0,0.00019626,2]
[408063641,1773094241326,-500.0,0.00019626,2]
[408063642,1773094241335,-500.0,0.00019626,2]
[408063643,1773094241345,-500.0,0.00019626,2]
[408063644,1773094241354,-500.0,0.00019626,2]
[408063645,1773094241364,-500.0,0.00019626,2]
[408063646,1773094241374,-500.0,0.00019626,2]
[408063647,1773094241384,-500.0,0.00019626,2]
[408063648,1773094241393,-315.90577271,0.00019626,2]
[408063649,1773094241403,-493.63959287,0.00019626,2]
[408063650,1773094241414,-500.0,0.00019626,2]
[408063651,1773094241424,-500.0,0.00019626,2]
[408063652,1773094241433,-500.0,0.00019626,2]
[408063653,1773094241443,-591.44720313,0.00019626,2]
[408063654,1773094241453,-163.89588284,0.00019626,2]
[408063655,1773094241462,-1978.0,0.00019627,2]
[408063656,1773094241783,-150.0,0.00019627,2]
[408063657,1773094241794,-857292.19115032,0.00019627,2]
[408063658,1773094241816,-518036.77234968,0.00019627,2]
[408063659,1773094241826,-3393.2835983,0.00019627,2]
[408063660,1773094241836,-487.0,0.00019627,2]
[408063661,1773094241846,-487.0,0.00019627,2]
[408063662,1773094241856,-487.0,0.00019627,2]
[408063663,1773094241866,-487.0,0.00019627,2]
[408063664,1773094241876,-588.36,0.00019627,2]
[408063665,1773094241886,-3805.85778101,0.00019634,2]
[408063666,1773094241897,-276.8607381,0.00019636,2]
[408063667,1773094241907,-500.0,0.00019661,2]
[408063668,1773094241916,-500.0,0.00019661,2]
[408063669,1773094241926,-500.0,0.00019661,2]
[408063670,1773094241936,-500.0,0.00019673,2]
[408063671,1773094241947,-500.0,0.00019673,2]
[408063672,1773094241958,-500.0,0.00019673,2]
[408063673,1773094241968,-150.0,0.00019673,2]
[408063674,1773094241978,-500.0,0.00019673,2]
[408063675,1773094241987,-150.0,0.00019673,2]
[408063676,1773094241997,-500.0,0.00019673,2]
[408063677,1773094242007,-150.0,0.00019673,2]
[408063678,1773094242016,-150.0,0.00019673,2]
[408063679,1773094242024,-250.0,0.00019673,2]
[408063680,1773094242033,-250.0,0.00019673,2]
[408063681,1773094242043,-500.0,0.00019673,2]
[408063682,1773094242052,-276.8607381,0.00019674,2]
[408063683,1773094242061,-1433.63527923,0.00019682,2]
[408063684,1773094242070,-3805.85778101,0.00019687,2]
[408063685,1773094242081,-276.8607381,0.00019712,2]
[408063686,1773094242091,-1000.0,0.00019714,2]
[408063687,1773094242102,-500.0,0.00019725,2]
[408063688,1773094242113,-500.0,0.00019725,2]
[408063689,1773094242122,-500.0,0.00019725,2]
[408063690,1773094242131,-1433.63527918,0.00019726,2]
[408063691,1773094242143,-1000.0,0.00019726,2]
[408063692,1773094242152,-500.0,0.00019727,2]
[408063693,1773094242162,-500.0,0.00019727,2]
[408063694,1773094242171,-500.0,0.00019727,2]
[408063695,1773094242181,-500.0,0.00019728,2]
[408063696,1773094242190,-500.0,0.00019728,2]
[408063697,1773094242200,-150.0,0.00019728,2]
[408063698,1773094242210,-500.0,0.00019728,2]
[408063699,1773094242221,-150.0,0.00019728,2]
[408063700,1773094242231,-500.0,0.00019728,2]
[408063701,1773094242240,-1000.0,0.00019731,2]
[408063702,1773094242250,-1484.21,0.00019736,2]
[408063703,1773094242259,-1000.0,0.0001974,2]
[408063704,1773094242270,-3805.85778101,0.0001974,2]
[408063705,1773094242279,-172.87392778,0.00019741,2]
[408063706,1773094242288,-276.8607381,0.00019749,2]
[408063707,1773094242298,-168.0,0.0001975,2]
[408063708,1773094242308,-1000.0,0.0001976,2]
[408063709,1773094242317,-1433.63527918,0.00019769,2]
[408063710,1773094242327,-500.0,0.00019783,2]
[408063711,1773094242336,-500.0,0.00019783,2]
[408063712,1773094242345,-200.0,0.00019783,2]
[408063713,1773094242355,-597.75730998,0.00019783,2]
[408063714,1773094242365,-200.0,0.00019783,2]
[408063715,1773094242377,-500.0,0.00019783,2]
[408063716,1773094242388,-276.8607381,0.00019787,2]
[408063717,1773094242398,-3805.85778101,0.00019793,2]
[408063718,1773094242408,-727.34173774,0.000198,2]
[408063719,1773094242417,-775.74936,0.000198,2]
[408063720,1773094242426,-775.74937,0.000198,2]
[408063721,1773094242435,-315.0,0.00019812,2]
[408063722,1773094242445,-1433.63527918,0.00019813,2]
[408063723,1773094242454,-150.0,0.0001982,2]
[408063724,1773094242463,-152.0,0.00019823,5]
[408063725,1773094242473,-276.8607381,0.00019825,2]
[408063726,1773094242482,-150.0,0.00019837,2]
[408063727,1773094242492,-500.0,0.00019837,2]
[408063728,1773094242501,-500.0,0.00019837,2]
[408063729,1773094242510,-254.58507519,0.00019837,2]
[408063730,1773094242519,-3805.85778101,0.00019847,2]
[408063731,1773094242529,-1433.63527918,0.00019856,2]
[408063732,1773094242539,-151.0,0.00019862,2]
[408063733,1773094242550,-276.8607381,0.00019862,2]
[408063734,1773094242561,-1000.0,0.00019881,2]
[408063735,1773094242570,-1000.0,0.00019882,2]
[408063736,1773094242580,-2090.087,0.00019892,2]
[408063737,1773094242590,-500.0,0.00019892,2]
[408063738,1773094242599,-500.0,0.00019892,2]
[408063739,1773094242609,-169.169,0.00019895,2]
[408063740,1773094242618,-151.0,0.00019896,2]
[408063742,1773094242628,-10145.84683209,0.00019896,2]
[408063744,1773094242637,-2729.55164584,0.00019896,2]
[408063746,1773094242646,-8679.64062478,0.00019896,2]
[408063748,1773094242655,-2057.45248293,0.00019896,2]
[408063750,1773094242664,-500.0,0.00019898,2]
[408063751,1773094242674,-500.0,0.00019898,2]
[408063752,1773094242683,-500.0,0.00019898,2]
[408063753,1773094242692,-500.0,0.00019898,2]
[408063754,1773094242701,-500.0,0.00019898,2]
[408063755,1773094242710,-500.0,0.00019898,2]
[408063756,1773094242720,-500.0,0.00019898,2]
[408063758,1773094242729,-500.0,0.00019898,2]
[408063759,1773094242740,-500.0,0.00019899,2]
[408063760,1773094242749,-500.0,0.00019899,2]
[408063761,1773094242759,-500.0,0.00019899,2]
[408063762,1773094242768,-276.8607381,0.000199,2]
[408063763,1773094242778,-1433.63527918,0.000199,2]
[408063764,1773094242787,-3805.85778101,0.000199,2]
[408063765,1773094242798,-402.81468298,0.000199,3]
[408063766,1773094242807,-4619.35803884,0.000199,2]
[408063767,1773094242816,-692.1,0.00019902,2]
[408063768,1773094242826,-150.0,0.0001991,2]
[408063769,1773094242835,-151.0,0.00019931,2]
[408063770,1773094242844,-158.83,0.00019933,2]
[408063771,1773094242853,-1000.0,0.00019935,2]
[408063772,1773094242862,-204.92593755,0.00019947,2]
[408063773,1773094242871,-500.0,0.00019947,2]
[408063774,1773094242881,-150.0,0.00019963,2]
[408063775,1773094242900,-151.0,0.00019965,2]
[408063776,1773094242913,-700.0,0.0001997,2]
[408063777,1773094242923,-700.0,0.0001997,2]
[408063778,1773094242933,-700.0,0.0001997,2]
[408063779,1773094242945,-700.0,0.0001997,2]
[408063780,1773094242956,-1353.20037263,0.0001997,2]
[408063781,1773094242967,-1000.0,0.0001997,2]
[408063783,1773094242976,-1073.19,0.00019972,2]
[408063784,1773094242988,-1073.19,0.00019972,2]
[408063785,1773094242997,-1073.19,0.00019972,2]
[408063786,1773094243007,-1073.19,0.00019972,2]
[408063787,1773094243018,-1097.1,0.00019972,2]
[408063788,1773094243027,-1073.19,0.00019972,2]
[408063789,1773094243038,-1073.19,0.00019972,2]
[408063790,1773094243050,-2637.9,0.00019972,2]
[408063791,1773094243059,-2637.9,0.00019972,2]
[408063792,1773094243070,-2637.9,0.00019972,2]
[408063793,1773094243080,-2637.9,0.00019972,2]
[408063794,1773094243089,-2637.9,0.00019972,2]
[408063795,1773094243098,-2637.9,0.00019972,2]
[408063796,1773094243108,-2637.9,0.00019972,2]
[408063797,1773094243118,-500.0,0.00019972,2]
[408063798,1773094243128,-500.0,0.00019972,2]
[408063799,1773094243138,-500.0,0.00019972,2]
[408063800,1773094243149,-500.0,0.00019972,2]
[408063801,1773094243160,-500.0,0.00019972,2]
[408063802,1773094243170,-500.0,0.00019972,2]
[408063803,1773094243182,-500.0,0.00019972,2]
[408063804,1773094243191,-814.0,0.00019973,2]
[408063805,1773094243201,-500.0,0.00019973,2]
[408063806,1773094243210,-500.0,0.00019973,2]
[408063808,1773094243220,-500.0,0.00019973,2]
[408063809,1773094243231,-500.0,0.00019973,2]
[408063810,1773094243242,-37212.0,0.00019973,2]
[408063811,1773094243251,-500.0,0.00019973,2]
[408063812,1773094243263,-500.0,0.00019973,2]
[408063813,1773094243272,-500.0,0.00019973,2]
[408063814,1773094243282,-500.0,0.00019973,2]
[408063815,1773094243292,-500.0,0.00019973,2]
[408063816,1773094243302,-500.0,0.00019973,2]
[408063817,1773094243311,-500.0,0.00019973,2]
[408063818,1773094243321,-500.0,0.00019973,2]
[408063819,1773094243330,-163.7437981,0.00019973,2]
[408063820,1773094243339,-450.72456411,0.00019973,2]
[408063821,1773094243349,-501.37407519,0.00019973,2]
[408063822,1773094243358,-300.0,0.00019973,2]
[408063823,1773094243368,-376.21289044,0.0001998,2]
[408063824,1773094243377,-1000.0,0.0001998,2]
[408063825,1773094243386,-226.348,0.0001998,2]
[408063826,1773094243395,-1000.0,0.00019986,2]
[408063827,1773094243405,-500.0,0.00019989,2]
[408063828,1773094243414,-198.88319627,0.0001999,2]
[408063829,1773094243423,-500.0,0.00019994,2]
[408063830,1773094243433,-500.0,0.00019994,2]
[408063831,1773094243443,-500.0,0.00019994,2]
[408063832,1773094243452,-250.0,0.00019996,2]
[408063833,1773094243462,-151.0,0.00019997,2]
[408063834,1773094243472,-500.0,0.00019998,2]
[408063835,1773094243481,-500.0,0.00019998,2]
[408063836,1773094243490,-500.0,0.00019998,2]
[408063837,1773094243500,-500.0,0.00019998,2]
[408063838,1773094243510,-500.0,0.00019998,2]
[408063839,1773094243519,-500.0,0.00019998,2]
[408063840,1773094243528,-500.0,0.00019998,2]
[408063841,1773094243538,-500.0,0.00019998,2]
[408063842,1773094243549,-500.0,0.00019998,2]
[408063843,1773094243562,-500.0,0.00019998,2]
[408063844,1773094243572,-500.0,0.00019998,2]
[408063845,1773094243582,-1097.1,0.00019998,2]
[408063846,1773094243591,-300.0,0.00019998,2]
[408063847,1773094243602,-666.0,0.00019998,2]
[408063848,1773094243612,-300.0,0.00019998,2]
[408063849,1773094243622,-500.0,0.00019998,2]
[408063850,1773094243631,-500.0,0.00019998,2]
[408063851,1773094243641,-150.0,0.00019999,2]
[408063852,1773094243650,-500.0,0.00019999,2]
[408063853,1773094243659,-500.0,0.00019999,2]
[408063854,1773094243669,-165.33508127,0.00019999,2]
[408063855,1773094243678,-500.0,0.00019999,2]
[408063856,1773094243688,-500.0,0.00019999,2]
[408063857,1773094243697,-500.0,0.00019999,2]
[408063858,1773094243706,-500.0,0.00019999,2]
[408063859,1773094243716,-500.0,0.00019999,2]
[408063860,1773094243725,-500.0,0.00019999,2]
[408063861,1773094243735,-500.0,0.00019999,2]
[408063862,1773094243745,-500.0,0.00019999,2]
[408063863,1773094243754,-500.0,0.00019999,2]
[408063864,1773094243763,-500.0,0.00019999,2]
[408063865,1773094243773,-500.0,0.00019999,2]
[408063866,1773094243782,-500.0,0.00019999,2]
[408063867,1773094243791,-500.0,0.00019999,2]
[408063868,1773094243801,-500.0,0.00019999,2]
[408063869,1773094243810,-500.0,0.00019999,2]
[408063870,1773094243824,-500.0,0.00019999,2]
[408063871,1773094243833,-500.0,0.00019999,2]
[408063872,1773094243843,-500.0,0.00019999,2]
[408063873,1773094243853,-500.0,0.00019999,2]
[408063874,1773094243863,-500.0,0.00019999,2]
[408063875,1773094243872,-500.0,0.00019999,2]
[408063876,1773094243882,-500.0,0.00019999,2]
[408063877,1773094243891,-500.0,0.00019999,2]
[408063878,1773094243902,-500.0,0.00019999,2]
[408063879,1773094243912,-500.0,0.00019999,2]
[408063880,1773094243924,-500.0,0.00019999,2]
[408063881,1773094243934,-500.0,0.00019999,2]
[408063882,1773094243944,-500.0,0.00019999,2]
[408063883,1773094243954,-500.0,0.00019999,2]
[408063884,1773094243964,-500.0,0.00019999,2]
[408063885,1773094243974,-196.94247842,0.00019999,2]
[408063886,1773094243984,-500.0,0.00019999,2]
[408063887,1773094243995,-338.12764348,0.00019999,2]
[408063888,1773094244005,-500.0,0.00019999,2]
[408063889,1773094244014,-500.0,0.00019999,2]
[408063890,1773094244023,-500.0,0.00019999,2]
[408063891,1773094244033,-500.0,0.00019999,2]
[408063892,1773094244043,-500.0,0.00019999,2]
[408063893,1773094244053,-500.0,0.00019999,2]
[408063894,1773094244063,-500.0,0.00019999,2]
[408063895,1773094244072,-500.0,0.00019999,2]
[408063896,1773094244082,-500.0,0.00019999,2]
[408063897,1773094244091,-207.19271829,0.00019999,2]
[408063898,1773094244100,-500.0,0.00019999,2]
[408063899,1773094244111,-598.20309433,0.00019999,2]
[408063900,1773094244120,-500.0,0.00019999,2]
[408063901,1773094244130,-500.0,0.00019999,2]
[408063902,1773094244139,-500.0,0.00019999,2]
[408063903,1773094244148,-500.0,0.00019999,2]
[408063904,1773094244158,-500.0,0.00019999,2]
[408063905,1773094244167,-500.0,0.00019999,2]
[408063906,1773094244177,-500.0,0.00019999,2]
[408063907,1773094244187,-500.0,0.00019999,2]
[408063908,1773094244197,-500.0,0.00019999,2]
[408063909,1773094244207,-500.0,0.00019999,2]
[408063910,1773094244216,-500.0,0.00019999,2]
[408063911,1773094244226,-428.53282519,0.00019999,2]
[408063912,1773094244236,-282.43651056,0.00019999,2]
[408063913,1773094244247,-500.0,0.00019999,2]
[408063914,1773094244256,-500.0,0.00019999,2]
[408063915,1773094244266,-500.0,0.00019999,2]
[408063916,1773094244275,-180.65596028,0.00019999,2]
[408063917,1773094244285,-500.0,0.00019999,2]
[408063918,1773094244295,-500.0,0.00019999,2]